bitfinex-derivatives/quotes_SOLF0:USTF0_20260306
["timestamp","ask_amount","ask_price","bid_price","bid_amount"]
[1772834285317,3.69106152,84.738,84.69,3.65039989]
[1772834286329,3.65520111,84.737,84.69,3.65039989]
[1772834286523,3.65520111,84.729,84.69,3.65039989]
[1772834286727,3.65520111,84.729,84.684,2.24235475]
[1772834287126,3.65520111,84.729,84.69,3.65039989]
[1772834289529,3.65520111,84.729,84.691,2.28080311]
[1772834292627,3.65520111,84.729,84.7,3.65039989]
[1772834292830,3.65520111,84.729,84.692,2.29512662]
[1772834293735,3.65520111,84.729,84.693,2.304867]
[1772834294828,3.65520111,84.729,84.693,12.931867]
[1772834295930,3.65520111,84.729,84.697,10.626]
[1772834296233,3.65520111,84.729,84.698,2.31798801]
[1772834296733,3.65520111,84.729,84.702,10.625]
[1772834297737,3.65520111,84.729,84.647,21.265]
[1772834297738,3.63055299,84.746,84.72,3.65039989]
[1772834298434,3.63055299,84.746,84.711,2.29961789]
[1772834301835,3.63055299,84.746,84.713,10.624]
[1772834302438,3.63055299,84.746,84.711,2.29961789]
[1772834304635,3.63055299,84.761,84.721,2.42903997]
[1772834307441,3.63055299,84.761,84.73,3.65039989]
[1772834308141,3.63055299,84.757,84.708,10.625]
[1772834308347,3.63055299,84.757,84.701,2.47247112]
[1772834308538,3.63055299,84.757,84.71,3.65039989]
[1772834309047,10.62,84.747,84.71,3.65039989]
[1772834309241,3.63055299,84.746,84.71,3.65039989]
[1772834309440,3.63055299,84.739,84.68,2.4635457]
[1772834309645,3.63055299,84.739,84.7,3.65039989]
[1772834312442,3.63055299,84.739,84.7,3.64640162]
[1772834314646,3.99284767,84.732,84.691,2.4635457]
[1772834315752,3.99284767,84.731,84.691,2.4635457]
[1772834317950,3.99284767,84.731,84.7,3.64640162]
[1772834318150,3.99284767,84.731,84.691,2.4635457]
[1772834324459,3.99284767,84.731,84.693,10.627]
[1772834326860,3.99284767,84.731,84.691,2.4635457]
[1772834326861,3.64640162,84.73,84.682,2.4193547]
[1772834327365,3.99284767,84.729,84.682,2.4193547]
[1772834328157,3.99284767,84.729,84.69,3.64640162]
[1772834330260,3.99284767,84.729,84.69,14.27340162]
[1772834330664,3.99284767,84.757,84.691,2.40587233]
[1772834330862,3.99284767,84.749,84.7,3.64640162]
[1772834331068,3.99284767,84.747,84.7,3.64640162]
[1772834331270,3.99284767,84.745,84.7,3.64640162]
[1772834331460,3.99284767,84.743,84.7,3.64640162]
[1772834331663,3.99284767,84.741,84.7,3.64640162]
[1772834331863,3.99284767,84.739,84.7,3.64640162]
[1772834332162,3.99284767,84.737,84.7,3.64640162]
[1772834332366,3.99284767,84.735,84.7,3.64640162]
[1772834332567,7.2919792,84.734,84.7,3.64640162]
[1772834332773,3.99284767,84.735,84.7,3.64640162]
[1772834332973,7.29269081,84.734,84.7,3.64640162]
[1772834333273,3.99284767,84.735,84.7,3.64640162]
[1772834333570,7.2933034,84.734,84.701,2.57590323]
[1772834333780,3.99284767,84.735,84.71,3.64640162]
[1772834334170,3.99284767,84.751,84.711,2.57590323]
[1772834334466,3.99284767,84.749,84.711,2.57590323]
[1772834334671,3.99284767,84.747,84.71,3.64640162]
[1772834334871,3.99284767,84.745,84.7,6.22230485]
[1772834335065,3.99284767,84.743,84.7,6.22230485]
[1772834335266,3.99284767,84.741,84.7,6.22230485]
[1772834335465,3.99284767,84.739,84.7,6.22230485]
[1772834335667,10.62,84.748,84.7,6.22230485]
[1772834335668,3.99284767,84.737,84.7,6.22230485]
[1772834335868,3.99284767,84.735,84.7,6.22230485]
[1772834336275,3.7814818,84.733,84.7,6.22230485]
[1772834337876,10.621,84.741,84.701,2.62813502]
[1772834338074,3.7814818,84.739,84.71,3.64640162]
[1772834338279,3.7814818,84.737,84.71,3.64640162]
[1772834338476,3.7814818,84.737,84.701,2.62813502]
[1772834340380,3.7814818,84.737,84.71,3.64640162]
[1772834341281,3.7814818,84.737,84.703,2.63218316]
[1772834346896,3.91106827,84.732,84.691,2.65035489]
[1772834348293,3.91106827,84.73,84.691,2.65035489]
[1772834348993,3.91106827,84.73,84.691,13.27735489]
[1772834349391,3.91106827,84.73,84.692,2.64791488]
[1772834351489,3.91106827,84.727,84.692,2.64791488]
[1772834353298,7.30971163,84.726,84.692,2.64791488]
[1772834353498,3.91106827,84.727,84.693,10.627]
[1772834353799,7.30970929,84.726,84.694,2.69133316]
[1772834353998,3.91106827,84.727,84.694,2.69133316]
[1772834354193,7.3097116,84.726,84.694,2.69133316]
[1772834354390,3.91106827,84.727,84.694,2.69133316]
[1772834354594,7.31042769,84.726,84.694,2.69133316]
[1772834354790,3.91106827,84.727,84.695,10.626]
[1772834354996,7.31042766,84.726,84.695,10.626]
[1772834355195,3.91106827,84.727,84.695,10.626]
[1772834355399,7.31048977,84.726,84.695,10.626]
[1772834355601,3.91106827,84.727,84.7,3.64640162]
[1772834355800,7.31048977,84.726,84.7,3.64640162]
[1772834355999,3.91106827,84.727,84.7,3.64640162]
[1772834356201,7.31048977,84.726,84.7,3.64640162]
[1772834356402,3.91106827,84.727,84.7,3.64640162]
[1772834356602,7.31047342,84.726,84.7,3.64640162]
[1772834356797,3.91106827,84.727,84.7,3.64640162]
[1772834357097,7.30445974,84.726,84.7,3.64640162]
[1772834357295,3.91106827,84.727,84.7,3.64640162]
[1772834357495,7.30453493,84.726,84.7,3.64640162]
[1772834357801,3.91106827,84.727,84.7,3.64640162]
[1772834358001,7.30356012,84.726,84.7,3.64640162]
[1772834358202,3.91106827,84.727,84.7,3.64640162]
[1772834358399,7.30363972,84.726,84.7,3.64640162]
[1772834358601,3.91106827,84.727,84.7,3.64640162]
[1772834358803,7.30363972,84.726,84.7,3.64640162]
[1772834359102,3.91106827,84.727,84.7,3.64640162]
[1772834359302,7.30362773,84.726,84.7,3.64640162]
[1772834359503,3.91106827,84.727,84.7,3.64640162]
[1772834359704,7.30375633,84.726,84.7,3.64640162]
[1772834359903,3.91106827,84.727,84.7,3.64640162]
[1772834360204,7.30375811,84.726,84.7,3.64640162]
[1772834360404,3.91106827,84.727,84.7,3.64640162]
[1772834360606,3.91106827,84.725,84.695,13.3175415]
[1772834360906,3.91106827,84.725,84.698,10.626]
[1772834361106,3.91106827,84.725,84.7,3.64640162]
[1772834361805,3.91106827,84.749,84.702,10.625]
[1772834362006,3.91106827,84.747,84.702,10.625]
[1772834362206,3.91106827,84.745,84.702,10.625]
[1772834362398,3.91106827,84.743,84.702,10.625]
[1772834362603,3.91106827,84.741,84.702,10.625]
[1772834362803,3.91106827,84.739,84.7,3.64640162]
[1772834363106,3.91106827,84.737,84.696,2.71464592]
[1772834363304,3.91106827,84.735,84.696,2.71464592]
[1772834363506,3.91106827,84.733,84.696,2.71464592]
[1772834363805,3.91106827,84.731,84.696,2.71464592]
[1772834364005,3.91106827,84.729,84.696,2.71464592]
[1772834364206,7.30376088,84.728,84.696,2.71464592]
[1772834364408,7.30376088,84.727,84.696,2.71464592]
[1772834364708,7.30376088,84.726,84.697,10.626]
[1772834364909,3.91106827,84.729,84.697,10.626]
[1772834365110,11.21483796,84.728,84.697,10.626]
[1772834365311,7.30376969,84.727,84.697,10.626]
[1772834365512,7.30376969,84.726,84.697,10.626]
[1772834365811,3.91106827,84.728,84.697,10.626]
[1772834366012,7.30376938,84.727,84.697,10.626]
[1772834366209,7.30376938,84.726,84.697,10.626]
[1772834366413,3.91106827,84.728,84.697,10.626]
[1772834366613,7.30376965,84.727,84.697,10.626]
[1772834366815,7.30376965,84.726,84.703,10.625]
[1772834367013,3.91106827,84.728,84.703,10.625]
[1772834367216,7.30379714,84.727,84.704,2.75565603]
[1772834367413,7.30379714,84.726,84.704,2.75565603]
[1772834367614,3.91106827,84.739,84.704,2.75565603]
[1772834367813,7.30392685,84.738,84.704,2.75565603]
[1772834368011,3.91106827,84.739,84.704,2.75565603]
[1772834368012,7.30392685,84.737,84.704,2.75565603]
[1772834368215,7.30392685,84.736,84.704,2.75565603]
[1772834368414,7.30392685,84.735,84.704,2.75565603]
[1772834368615,7.30392685,84.734,84.704,2.75565603]
[1772834368816,7.30392685,84.733,84.704,2.75565603]
[1772834369015,7.30392685,84.732,84.704,2.75565603]
[1772834369315,7.30392685,84.731,84.704,2.75565603]
[1772834369517,3.91106827,84.739,84.704,2.75565603]
[1772834369716,7.30472832,84.738,84.704,2.75565603]
[1772834370018,3.91106827,84.736,84.694,10.626]
[1772834370218,3.91106827,84.734,84.694,10.626]
[1772834370420,3.91106827,84.732,84.694,10.626]
[1772834370719,3.91106827,84.73,84.694,10.626]
[1772834370921,3.91106827,84.728,84.694,10.626]
[1772834371218,11.21579659,84.727,84.694,10.626]
[1772834372321,3.91106827,84.727,84.694,10.626]
[1772834372521,11.2937736,84.726,84.694,10.626]
[1772834372822,3.98993944,84.726,84.694,10.626]
[1772834374823,3.98993944,84.726,84.695,2.80498006]
[1772834376022,3.98993944,84.726,84.7,3.64691038]
[1772834380122,3.98993944,84.726,84.696,10.626]
[1772834384330,7.30414699,84.725,84.696,10.626]
[1772834384531,3.98993944,84.726,84.696,10.626]
[1772834384832,7.30414699,84.725,84.696,10.626]
[1772834385025,3.98993944,84.723,84.689,10.627]
[1772834385226,3.98993944,84.721,84.671,2.89776015]
[1772834385428,3.98993944,84.719,84.671,2.89776015]
[1772834385629,3.98993944,84.717,84.681,10.628]
[1772834385832,3.98993944,84.715,84.681,10.628]
[1772834386131,3.98993944,84.713,84.674,10.629]
[1772834386331,3.98993944,84.711,84.674,10.629]
[1772834388331,3.98993944,84.711,84.674,13.52124172]
[1772834389035,3.98993944,84.711,84.68,10.628]
[1772834390325,3.98993944,84.711,84.674,2.89224172]
[1772834393638,3.98993944,84.711,84.675,10.629]
[1772834393938,3.98993944,84.711,84.675,13.46124073]
[1772834395536,3.98993944,84.711,84.675,2.83224073]
[1772834395837,3.98993944,84.711,84.68,3.64691038]
[1772834396935,3.98993944,84.711,84.68,14.27491038]
[1772834397140,3.98993944,84.711,84.68,3.64691038]
[1772834397537,3.98993944,84.711,84.681,2.83101731]
[1772834398840,3.98993944,84.711,84.683,10.628]
[1772834399233,3.88782705,84.728,84.69,3.64691038]
[1772834399437,3.88782705,84.726,84.69,3.64691038]
[1772834399636,3.88782705,84.724,84.69,3.64691038]
[1772834399838,3.88782705,84.722,84.69,3.64691038]
[1772834400040,3.88782705,84.72,84.69,3.64691038]
[1772834400238,7.28093049,84.719,84.69,3.64691038]
[1772834400538,7.28093049,84.718,84.69,3.64691038]
[1772834400738,7.28093049,84.717,84.69,3.64691038]
[1772834401039,3.88782705,84.72,84.69,3.64691038]
[1772834401641,3.88782705,84.72,84.684,2.84976165]
[1772834401842,4.02953571,84.719,84.671,2.85325552]
[1772834402138,4.02953571,84.709,84.66,6.50007099]
[1772834402344,4.02953571,84.707,84.66,6.50007099]
[1772834403444,4.02953571,84.705,84.66,6.50007099]
[1772834403741,4.02953571,84.702,84.66,6.50007099]
[1772834403941,4.02953571,84.7,84.66,6.50007099]
[1772834404141,4.02953571,84.698,84.66,6.50007099]
[1772834404342,4.02953571,84.696,84.66,6.50007099]
[1772834404940,4.02953571,84.696,84.661,2.89534979]
[1772834409749,4.02953571,84.695,84.661,2.89534979]
[1772834409951,4.02953571,84.693,84.661,2.89534979]
[1772834410144,4.02953571,84.691,84.661,2.89534979]
[1772834422654,4.02953571,84.703,84.671,2.83631517]
[1772834422850,7.81387314,84.702,84.68,3.64691038]
[1772834423049,7.81387314,84.701,84.68,3.64691038]
[1772834423353,7.81387314,84.7,84.68,3.64691038]
[1772834423650,7.81387314,84.699,84.671,2.83631517]
[1772834423853,7.81387314,84.698,84.673,2.82561791]
[1772834424053,7.81387314,84.697,84.673,2.82561791]
[1772834424253,7.81387314,84.696,84.673,2.82561791]
[1772834424556,7.81387314,84.695,84.673,2.82561791]
[1772834424756,7.81387314,84.694,84.673,2.82561791]
[1772834424958,7.81387314,84.693,84.673,2.82561791]
[1772834425157,7.81387314,84.692,84.673,2.82561791]
[1772834425457,4.02953571,84.713,84.673,2.82561791]
[1772834425458,7.81387314,84.691,84.673,2.82561791]
[1772834425757,4.02953571,84.713,84.673,2.82561791]
[1772834425957,4.02953571,84.711,84.673,2.82561791]
[1772834426152,10.624,84.718,84.673,2.82561791]
[1772834426153,4.02953571,84.709,84.673,2.82561791]
[1772834426349,11.84694043,84.708,84.673,2.82561791]
[1772834426547,7.81740472,84.707,84.673,2.82561791]
[1772834426760,7.81740472,84.706,84.673,2.82561791]
[1772834427058,7.81740472,84.705,84.673,2.82561791]
[1772834427260,7.81740472,84.704,84.673,2.82561791]
[1772834427560,7.81740472,84.703,84.673,2.82561791]
[1772834427752,7.81740472,84.702,84.673,2.82561791]
[1772834427957,7.81740472,84.701,84.673,2.82561791]
[1772834428261,7.81740472,84.7,84.673,2.82561791]
[1772834428460,7.81740472,84.699,84.673,2.82561791]
[1772834428662,7.81740472,84.698,84.673,2.82561791]
[1772834428861,7.81740472,84.697,84.673,2.82561791]
[1772834429059,4.02953571,84.708,84.673,2.82561791]
[1772834429060,7.81740472,84.696,84.673,2.82561791]
[1772834429260,7.81740472,84.695,84.681,2.83232239]
[1772834429561,7.81740472,84.694,84.681,2.83232239]
[1772834429761,4.02953571,84.716,84.681,2.83232239]
[1772834429962,7.82705566,84.715,84.681,2.83232239]
[1772834430261,7.82705566,84.714,84.69,6.47923277]
[1772834430452,7.82705566,84.713,84.69,6.47923277]
[1772834430652,7.82705566,84.712,84.69,6.47923277]
[1772834430860,7.82705566,84.711,84.69,6.47923277]
[1772834431061,7.82705566,84.71,84.69,6.47923277]
[1772834431252,7.82705566,84.709,84.69,6.47923277]
[1772834431454,7.82705566,84.708,84.69,6.47923277]
[1772834431656,7.82705566,84.707,84.69,6.47923277]
[1772834431854,7.82705566,84.706,84.69,6.47923277]
[1772834432060,7.82705566,84.705,84.69,6.47923277]
[1772834432262,7.82705566,84.704,84.69,6.47923277]
[1772834432560,4.02953571,84.726,84.691,2.77609446]
[1772834433553,4.02953571,84.726,84.7,3.64691038]
[1772834434762,3.82660273,84.734,84.7,6.404274]
[1772834435062,8.81782374,84.743,84.701,2.74867282]
[1772834435261,8.81782374,84.742,84.711,2.74867282]
[1772834435465,3.82660273,84.749,84.711,2.74867282]
[1772834435665,3.82660273,84.747,84.7,6.3955832]
[1772834435866,3.82660273,84.745,84.71,3.64691038]
[1772834436067,3.82660273,84.743,84.71,3.64691038]
[1772834436566,3.82660273,84.743,84.71,3.64601726]
[1772834439263,10.619,84.752,84.71,3.64601726]
[1772834439469,3.82660273,84.753,84.721,2.66450947]
[1772834439968,3.82660273,84.753,84.72,3.64601726]
[1772834440170,3.82660273,84.753,84.71,3.64601726]
[1772834441970,3.82660273,84.751,84.71,3.64601726]
[1772834444569,10.619,84.752,84.71,3.64601726]
[1772834444570,3.82660273,84.749,84.71,3.64601726]
[1772834444870,3.82660273,84.747,84.71,3.64601726]
[1772834445071,3.82660273,84.745,84.71,3.64601726]
[1772834449364,3.82660273,84.745,84.7,6.31052673]
[1772834449763,3.82660273,84.745,84.701,2.53685395]
[1772834450973,3.82660273,84.745,84.71,3.64601726]
[1772834452874,3.82660273,84.745,84.701,2.53685395]
[1772834454781,10.62,84.747,84.711,2.56212263]
[1772834458576,14.47920412,84.747,84.711,2.56212263]
[1772834459078,3.85920412,84.746,84.711,2.56212263]
[1772834467087,3.99217354,84.744,84.702,2.56711995]
[1772834467286,3.99217354,84.744,84.691,2.56711995]
[1772834467481,3.99217354,84.729,84.67,2.56711995]
[1772834467686,3.64601726,84.73,84.68,3.64601726]
[1772834467687,3.99217354,84.727,84.68,3.64601726]
[1772834467885,3.99217354,84.725,84.68,3.64601726]
[1772834469298,3.99217354,84.723,84.68,3.64601726]
[1772834469492,3.99217354,84.723,84.68,6.20702177]
[1772834469892,3.99217354,84.723,84.681,10.628]
[1772834470093,3.99217354,84.723,84.682,2.56100451]
[1772834470397,3.99217354,84.723,84.69,3.64601726]
[1772834471297,7.52120477,84.722,84.69,3.64601726]
[1772834471496,3.99217354,84.723,84.69,3.64601726]
[1772834471794,7.5202617,84.722,84.69,3.64601726]
[1772834471997,10.621,84.735,84.701,2.41899536]
[1772834472188,7.52054826,84.734,84.701,2.41899536]
[1772834472391,7.52054826,84.733,84.701,2.41899536]
[1772834472590,7.52054826,84.732,84.701,2.41899536]
[1772834472795,3.99217354,84.73,84.69,6.06501262]
[1772834473098,3.99217354,84.728,84.69,2.41899536]
[1772834473398,3.99217354,84.726,84.69,2.41899536]
[1772834473696,3.99217354,84.724,84.69,2.41899536]
[1772834473992,11.5127218,84.723,84.69,2.41899536]
[1772834474197,7.52054826,84.722,84.691,10.627]
[1772834474398,3.99217354,84.723,84.691,10.627]
[1772834474399,7.52054826,84.721,84.691,10.627]
[1772834474698,7.52054826,84.72,84.691,10.627]
[1772834474897,3.99217354,84.723,84.691,10.627]
[1772834475092,7.52820284,84.722,84.691,10.627]
[1772834475296,7.52820284,84.721,84.691,10.627]
[1772834475497,7.52820284,84.72,84.691,10.627]
[1772834475799,7.52820284,84.719,84.691,10.627]
[1772834476098,3.99217354,84.723,84.691,10.627]
[1772834476299,7.53062751,84.722,84.691,10.627]
[1772834476494,7.53062751,84.721,84.7,3.64601726]
[1772834476696,7.53062751,84.72,84.7,3.64601726]
[1772834476992,3.99217354,84.746,84.701,2.45651308]
[1772834477198,3.64601726,84.76,84.71,3.64601726]
[1772834477199,3.99217354,84.745,84.71,3.64601726]
[1772834477996,3.99217354,84.757,84.72,3.64601726]
[1772834478193,3.99217354,84.755,84.72,3.64601726]
[1772834480802,3.99217354,84.755,84.72,6.14721467]
[1772834481204,3.99217354,84.755,84.721,2.50468699]
[1772834481405,3.99217354,84.767,84.731,2.50468699]
[1772834497224,3.99217354,84.767,84.73,3.64601726]
[1772834497521,3.99217354,84.767,84.723,10.623]
[1772834498221,3.99217354,84.767,84.723,13.17303434]
[1772834499121,3.99217354,84.767,84.724,2.54773135]
[1772834501233,3.99217354,84.767,84.687,22.01130863]
[1772834501234,3.99217354,84.767,84.731,2.55241417]
[1772834506335,3.99217354,84.767,84.732,10.622]
[1772834512444,3.99217354,84.767,84.718,13.29849202]
[1772834512845,3.99217354,84.767,84.721,10.623]
[1772834513341,3.99217354,84.767,84.722,2.65679534]
[1772834515142,3.92431271,84.765,84.724,2.64021797]
[1772834517150,3.7900662,84.763,84.726,2.63459047]
[1772834517653,3.7900662,84.763,84.73,6.27882642]
[1772834518152,7.4700213,84.762,84.73,6.27882642]
[1772834518349,3.7900662,84.763,84.73,6.27882642]
[1772834518652,7.47015116,84.762,84.73,6.27882642]
[1772834518848,3.7900662,84.763,84.73,6.27882642]
[1772834519150,7.47131746,84.762,84.73,6.27882642]
[1772834519351,7.47131746,84.761,84.73,6.27882642]
[1772834519550,7.47131746,84.76,84.73,6.27882642]
[1772834519850,3.7900662,84.763,84.73,6.27882642]
[1772834520050,3.64423595,84.76,84.71,3.64423595]
[1772834520247,3.7900662,84.758,84.709,2.63443456]
[1772834520451,3.7900662,84.756,84.709,2.63443456]
[1772834520652,3.7900662,84.754,84.709,2.63443456]
[1772834520852,3.7900662,84.752,84.709,2.63443456]
[1772834521053,3.7900662,84.749,84.697,2.65782036]
[1772834521253,3.7900662,84.747,84.7,3.64423595]
[1772834521452,3.7900662,84.745,84.7,3.64423595]
[1772834521655,3.7900662,84.743,84.7,3.64423595]
[1772834521845,3.75394742,84.741,84.702,10.625]
[1772834522049,3.75394742,84.739,84.702,10.625]
[1772834522351,3.75394742,84.737,84.69,3.64423595]
[1772834522654,3.75394742,84.735,84.69,3.64423595]
[1772834522851,3.75394742,84.733,84.69,3.64423595]
[1772834523053,3.75394742,84.731,84.69,3.64423595]
[1772834523256,3.75394742,84.729,84.691,10.627]
[1772834523456,3.75394742,84.727,84.691,10.627]
[1772834523755,3.75394742,84.725,84.691,10.627]
[1772834524549,3.75394742,84.725,84.686,2.65823598]
[1772834525753,3.75394742,84.725,84.688,10.627]
[1772834530254,3.75394742,84.725,84.688,13.24905295]
[1772834531157,3.75394742,84.725,84.688,2.62205295]
[1772834531550,3.75394742,84.725,84.69,3.64423595]
[1772834532358,3.75394742,84.725,84.7,3.64423595]
[1772834533258,3.75394742,84.725,84.692,2.62244543]
[1772834533449,3.75394742,84.725,84.69,3.64423595]
[1772834533753,3.75394742,84.725,84.693,10.627]
[1772834534756,3.75394742,84.725,84.693,13.24630433]
[1772834535061,3.75394742,84.735,84.701,2.63192076]
[1772834536951,3.75394742,84.735,84.701,13.25792076]
[1772834537560,3.75394742,84.735,84.702,2.68531405]
[1772834538162,3.75394742,84.757,84.71,3.64423595]
[1772834538365,3.75394742,84.755,84.71,3.64423595]
[1772834538663,3.75394742,84.753,84.71,3.64423595]
[1772834538865,3.75394742,84.751,84.71,3.64423595]
[1772834539064,3.75394742,84.749,84.71,3.64423595]
[1772834539264,3.75394742,84.747,84.71,3.64423595]
[1772834539465,11.18511182,84.746,84.711,2.63086209]
[1772834539664,3.75394742,84.746,84.711,2.63086209]
[1772834540265,3.75394742,84.746,84.715,2.63086209]
[1772834540465,3.75394742,84.779,84.73,3.64423595]
[1772834540666,3.75394742,84.777,84.73,3.64423595]
[1772834540868,3.75394742,84.772,84.73,3.64423595]
[1772834541066,3.75394742,84.77,84.73,3.64423595]
[1772834541262,3.75394742,84.768,84.73,3.64423595]
[1772834541569,3.75394742,84.768,84.73,6.28173433]
[1772834542568,3.75394742,84.768,84.731,2.63749838]
[1772834554379,3.75394742,84.768,84.74,3.64423595]
[1772834557876,3.75394742,84.768,84.731,2.63749838]
[1772834561687,3.6515137,84.752,84.702,10.625]
[1772834561982,3.6515137,84.752,84.72,6.66894953]
[1772834562184,3.6515137,84.752,84.721,3.02547081]
[1772834571786,3.6515137,84.752,84.73,3.64347872]
[1772834574693,3.6515137,84.752,84.726,10.622]
[1772834576589,3.6515137,84.752,84.717,10.624]
[1772834576794,3.6515137,84.752,84.72,3.64347872]
[1772834577899,3.6515137,84.752,84.723,10.623]
[1772834580899,3.6515137,84.752,84.735,10.621]
[1772834581200,3.67312398,84.761,84.735,10.621]
[1772834581400,7.45944241,84.76,84.731,3.13275639]
[1772834581599,7.45944241,84.759,84.731,3.13275639]
[1772834581795,7.45944241,84.758,84.731,3.13275639]
[1772834582099,7.45944241,84.757,84.731,3.13275639]
[1772834582300,3.67312398,84.761,84.731,3.13275639]
[1772834582301,7.45944241,84.756,84.731,3.13275639]
[1772834582599,7.45944241,84.755,84.731,3.13275639]
[1772834582800,3.67312398,84.761,84.741,10.621]
[1772834583000,7.46358718,84.76,84.741,10.621]
[1772834583202,7.46358718,84.759,84.741,10.621]
[1772834583503,7.46358718,84.758,84.741,10.621]
[1772834583702,7.46358718,84.757,84.741,10.621]
[1772834584003,7.46358718,84.756,84.741,10.621]
[1772834584206,7.46944981,84.755,84.741,10.621]
[1772834584502,3.91231124,84.777,84.741,10.621]
[1772834584703,3.91231124,84.775,84.741,10.621]
[1772834584901,3.91231124,84.773,84.741,10.621]
[1772834585096,3.91231124,84.771,84.741,10.621]
[1772834585294,3.91231124,84.769,84.741,10.621]
[1772834585495,3.91231124,84.767,84.741,10.621]
[1772834585699,7.4694565,84.766,84.741,10.621]
[1772834585900,7.4694565,84.765,84.741,10.621]
[1772834586106,7.4694565,84.764,84.741,10.621]
[1772834586304,7.4694565,84.763,84.741,10.621]
[1772834586510,7.4694565,84.762,84.741,10.621]
[1772834586705,7.4694565,84.761,84.734,10.621]
[1772834586900,3.91231124,84.767,84.734,10.621]
[1772834586901,7.4694565,84.76,84.734,10.621]
[1772834587108,7.4694565,84.759,84.734,10.621]
[1772834587403,7.4694565,84.758,84.734,10.621]
[1772834587604,3.91231124,84.767,84.734,10.621]
[1772834587605,7.4694565,84.757,84.734,10.621]
[1772834587805,7.4694565,84.756,84.734,10.621]
[1772834588005,7.4694565,84.755,84.734,10.621]
[1772834588303,7.4694565,84.754,84.734,10.621]
[1772834588507,3.91231124,84.767,84.734,10.621]
[1772834588707,11.38436924,84.766,84.734,10.621]
[1772834588907,7.472058,84.765,84.731,3.13275639]
[1772834589107,7.472058,84.764,84.731,3.13275639]
[1772834589307,7.472058,84.763,84.731,3.13275639]
[1772834589509,7.472058,84.762,84.731,3.13275639]
[1772834589710,7.472058,84.761,84.731,3.13275639]
[1772834589907,7.472058,84.76,84.731,3.13275639]
[1772834590106,7.472058,84.759,84.731,3.13275639]
[1772834590303,7.472058,84.758,84.731,3.13275639]
[1772834590507,7.472058,84.757,84.731,3.13275639]
[1772834590709,7.472058,84.756,84.731,3.13275639]
[1772834590908,7.472058,84.755,84.731,3.13275639]
[1772834591107,7.472058,84.754,84.731,3.13275639]
[1772834591308,3.91231124,84.766,84.731,3.13275639]
[1772834591507,11.38428893,84.765,84.731,3.13275639]
[1772834591709,7.47197769,84.764,84.731,3.13275639]
[1772834592009,7.47197769,84.763,84.731,3.13275639]
[1772834592210,7.47197769,84.762,84.731,3.13275639]
[1772834592409,7.47197769,84.761,84.731,3.13275639]
[1772834592610,7.47197769,84.76,84.731,3.13275639]
[1772834592809,7.47197769,84.759,84.731,3.13275639]
[1772834593010,7.47197769,84.758,84.731,3.13275639]
[1772834593308,7.47197769,84.757,84.731,3.13275639]
[1772834593513,7.47197769,84.756,84.731,3.13275639]
[1772834593812,7.47197769,84.755,84.731,3.13275639]
[1772834594011,7.47197769,84.754,84.731,3.13275639]
[1772834594211,3.91231124,84.765,84.731,3.13275639]
[1772834595413,7.47151584,84.759,84.731,3.13275639]
[1772834595712,7.47151584,84.758,84.731,3.13275639]
[1772834595916,7.47151584,84.757,84.731,3.13275639]
[1772834596109,7.47151584,84.756,84.731,3.13275639]
[1772834596315,7.47151584,84.755,84.731,3.13275639]
[1772834596511,7.47151584,84.754,84.731,3.13275639]
[1772834596815,3.91231124,84.763,84.731,3.13275639]
[1772834597014,7.47030398,84.762,84.731,3.13275639]
[1772834597214,7.47030398,84.761,84.731,3.13275639]
[1772834597414,7.47030398,84.76,84.731,3.13275639]
[1772834597616,7.47030398,84.759,84.731,13.75475639]
[1772834597816,7.47030398,84.758,84.731,13.75475639]
[1772834598016,7.47030398,84.757,84.731,13.75475639]
[1772834598215,7.47030398,84.756,84.731,13.75475639]
[1772834598415,7.47030398,84.755,84.731,13.75475639]
[1772834598617,7.47030398,84.754,84.731,13.75475639]
[1772834598809,3.91231124,84.763,84.731,13.75475639]
[1772834599008,11.38315852,84.762,84.731,13.75475639]
[1772834599217,7.47084728,84.761,84.731,13.75475639]
[1772834599410,7.47084728,84.76,84.731,13.75475639]
[1772834599614,7.47084728,84.759,84.731,13.75475639]
[1772834599815,7.47084728,84.758,84.731,13.75475639]
[1772834600011,7.47084728,84.757,84.731,13.75475639]
[1772834600212,7.47084728,84.756,84.731,13.75475639]
[1772834600418,7.47084728,84.755,84.731,13.75475639]
[1772834600717,7.47084728,84.754,84.731,13.75475639]
[1772834600918,7.47084728,84.753,84.731,13.75475639]
[1772834601117,3.91231124,84.762,84.731,13.75475639]
[1772834601320,7.47182945,84.761,84.731,13.75475639]
[1772834601618,7.47182945,84.76,84.731,13.75475639]
[1772834601820,7.47182945,84.759,84.731,13.75475639]
[1772834602019,7.47182945,84.758,84.731,13.75475639]
[1772834602220,7.47182945,84.757,84.731,13.75475639]
[1772834602420,7.47182945,84.756,84.731,13.75475639]